bitfinex/quotes_ETHUSD_20241129
["timestamp","ask_amount","ask_price","bid_price","bid_amount"]
[1732921497603,2.77871,3598.8,3598.0,3.45616594]
[1732921497841,2.77871,3598.8,3598.1,2.77924]
[1732921497996,2.77871,3598.8,3598.2,2.77916]
[1732921498602,2.77865,3598.9,3598.2,2.77916]
[1732921498836,2.77859,3599.0,3598.3,2.77906]
[1732921499057,0.3463,3599.3,3598.8,2.77869]
[1732921499216,2.77814,3599.6,3598.7,0.1]
[1732921499425,2.77814,3599.6,3598.9,2.77858]
[1732921500342,2.53073171,3599.8,3599.1,2.7784]
[1732921500552,2.77793,3599.8,3599.2,3.58257]
[1732921500730,2.77753,3600.4,3599.6,2.77803]
[1732921500998,2.77753,3600.4,3599.7,2.778]
[1732921500999,2.77754,3600.4,3599.7,2.778]
[1732921501256,0.84319117,3600.4,3599.3,2.87831]
[1732921501431,0.3463,3600.5,3599.3,2.87831]
[1732921501432,2.77778,3600.0,3599.3,0.1]
[1732921501638,2.77778,3600.0,3599.2,0.8042]
[1732921501830,2.77778,3600.0,3599.3,2.77824]
[1732921502516,2.77786,3599.9,3599.3,2.77824]
[1732921502721,2.77797,3599.8,3599.2,0.8042]
[1732921502940,2.77797,3599.8,3599.2,3.950871]
[1732921503155,2.77785,3599.9,3599.3,2.77829]
[1732921503352,2.77765,3600.2,3599.2,3.950871]
[1732921503541,2.77776,3600.1,3599.4,2.77822]
[1732921504144,2.77765,3600.2,3599.4,2.77822]
[1732921504323,2.77778,3600.0,3599.4,2.77822]
[1732921504512,2.7779,3599.9,3599.3,2.77829]
[1732921504999,2.77808,3599.6,3599.0,2.77853]
[1732921505199,2.77822,3599.5,3598.9,0.8802]
[1732921505406,2.77823,3599.5,3598.9,0.8802]
[1732921505637,2.77833,3599.3,3598.9,0.8802]
[1732921505789,2.77804,3599.7,3598.9,0.8802]
[1732921505995,2.77757,3600.3,3599.4,0.1]
[1732921506333,0.55548268,3600.3,3599.6,0.7917]
[1732921506510,2.77829,3599.4,3598.7,0.1]
[1732921506715,2.77808,3599.6,3598.9,2.77857]
[1732921506920,2.77821,3599.5,3598.7,2.77876]
[1732921507241,2.7783,3599.4,3598.7,0.1]
[1732921507406,2.7783,3599.4,3598.7,2.87872]
[1732921507608,2.77843,3599.2,3598.6,0.7917]
[1732921507834,2.77848,3599.1,3598.6,0.7917]
[1732921508132,2.77848,3599.1,3597.5,9.04184419]
[1732921508133,4.09913819,3599.7,3598.2,0.8917]
[1732921508436,2.77892,3598.6,3598.2,0.7917]
[1732921508737,2.77893,3598.5,3598.0,2.87929]
[1732921509031,2.77893,3598.5,3598.1,0.367099]
[1732921509652,2.77901,3598.4,3598.1,0.367099]
[1732921509839,2.77891,3598.6,3598.0,2.87931]
[1732921510035,2.77879,3598.7,3598.0,2.87931]
[1732921510219,3.75283819,3599.7,3598.3,2.87902]
[1732921510220,2.7786,3599.0,3598.3,2.87902]
[1732921510530,2.77863,3598.9,3598.4,0.7917]
[1732921511207,0.3463,3599.3,3598.4,0.7917]
[1732921511411,0.958758,3599.3,3598.4,0.7917]
[1732921511819,2.77839,3599.2,3598.4,0.7917]
[1732921512021,2.77877,3598.8,3598.4,0.7917]
[1732921512227,2.77879,3598.7,3598.4,0.7917]
[1732921512521,2.77886,3598.6,3598.1,0.7917]
[1732921512727,2.77886,3598.6,3598.2,0.367094]
[1732921512933,0.958758,3599.3,3598.2,0.367094]
[1732921513238,2.77887,3598.6,3598.1,0.7917]
[1732921513438,2.77886,3598.6,3598.1,0.7917]
[1732921513600,2.77863,3598.9,3598.3,0.1]
[1732921513935,2.77863,3598.9,3598.3,2.87908]
[1732921514443,2.77878,3598.7,3598.3,0.1]
[1732921514607,2.77878,3598.7,3598.3,0.467093]
[1732921515972,2.7787,3598.8,3598.3,0.467093]
[1732921516634,2.77861,3599.0,3598.3,3.246113]
[1732921516959,2.77854,3599.1,3598.3,0.467093]
[1732921517140,2.77871,3598.8,3598.3,0.467093]
[1732921517342,0.3463,3599.3,3598.6,0.7917]
[1732921517343,2.77833,3599.3,3598.6,0.7917]
[1732921517662,2.7783,3599.4,3598.8,2.77865]
[1732921517850,2.77829,3599.4,3598.7,2.87877]
[1732921518253,2.77831,3599.3,3598.7,2.87877]
[1732921518448,2.77831,3599.3,3598.8,0.644939]
[1732921519554,2.77854,3599.1,3598.8,0.644939]
[1732921519773,2.77854,3599.1,3598.7,0.1]
[1732921520130,2.77831,3599.3,3598.7,0.1]
[1732921520524,2.77845,3599.2,3598.7,0.1]
[1732921522465,2.77848,3599.1,3598.6,0.7917]
[1732921522775,2.77848,3599.1,3598.8,0.1]
[1732921522924,2.77851,3599.1,3598.8,0.1]
[1732921523123,2.77883,3598.7,3598.3,0.8545]
[1732921524650,5.30933314,3599.6,3598.5,0.1]
[1732921524851,2.77816,3599.5,3598.5,0.1]
[1732921525037,2.77854,3599.1,3598.5,0.463346]
[1732921525220,2.77866,3598.9,3598.5,0.363346]
[1732921525425,2.77853,3599.1,3598.6,0.1]
[1732921525626,2.77833,3599.3,3598.6,2.8788]
[1732921525868,2.77833,3599.3,3598.8,0.1]
[1732921526356,2.77769,3600.2,3599.4,0.1]
[1732921526558,0.3463,3600.6,3599.7,0.7545]
[1732921526762,2.7774,3600.5,3600.0,0.1]
[1732921527071,2.77772,3600.1,3599.7,0.7545]
[1732921527360,2.7777,3600.1,3599.7,0.7545]
[1732921527576,2.77781,3600.0,3599.7,0.7545]
[1732921527928,2.77766,3600.2,3599.7,0.7545]
[1732921528154,2.77772,3600.1,3599.7,0.7545]
[1732921528458,2.77757,3600.3,3599.7,0.7545]
[1732921528624,2.77784,3600.0,3599.7,0.7545]
[1732921528830,0.277784,3600.0,3599.2,0.7545]
[1732921529030,2.77818,3599.5,3599.2,0.8545]
[1732921529373,2.77803,3599.7,3599.2,0.8545]
[1732921529682,0.3463,3599.9,3599.2,0.8545]
[1732921529967,2.77807,3599.7,3599.2,0.8545]
[1732921530672,0.3463,3601.4,3600.0,0.1]
[1732921530979,2.77748,3600.4,3600.0,0.1]
[1732921531330,2.77697,3601.1,3599.9,0.7545]
[1732921531331,2.77772,3600.1,3599.9,0.7545]
[1732921532242,2.85177291,3600.0,3599.9,0.7545]
[1732921533460,2.85177291,3600.0,3599.5,0.8545]
[1732921533835,2.77785,3599.9,3599.5,0.8545]
[1732921534177,2.77816,3599.5,3599.0,0.7545]
[1732921534377,2.77847,3599.1,3598.6,0.7545]
[1732921534666,2.77867,3598.9,3598.6,0.7545]
[1732921534927,0.0738474,3599.0,3598.7,0.1]
[1732921535099,0.07368816,3598.8,3598.7,0.1]
[1732921535309,2.77849,3599.1,3598.6,0.7545]
[1732921535506,0.07370505,3598.8,3598.6,0.7545]
[1732921535737,2.77869,3598.9,3598.6,0.7545]
[1732921535914,0.07357653,3598.7,3598.6,0.7545]
[1732921536119,2.77869,3598.9,3598.6,0.7545]
[1732921536438,2.77849,3599.1,3598.6,0.7545]
[1732921536439,2.77872,3598.8,3598.6,0.7545]
[1732921536587,2.77885,3598.6,3598.2,0.7545]
[1732921536793,0.07353234,3598.5,3598.3,0.1]
[1732921538726,2.85246234,3598.5,3598.2,1.417884]
[1732921539024,0.07353234,3598.5,3598.2,0.7545]
[1732921539330,2.77909,3598.3,3597.9,0.7545]
[1732921539703,0.07333321,3598.2,3597.9,3.8545]
[1732921540010,2.77904,3598.4,3597.9,3.8545]
[1732921540340,0.07335531,3598.3,3597.9,4.517897]
[1732921541023,0.07335531,3598.3,3598.2,0.1]
[1732921541229,0.07335531,3598.3,3597.9,4.417897]
[1732921541593,0.07335531,3598.3,3598.2,0.1]
[1732921541794,0.07335531,3598.3,3598.0,0.1]
[1732921542108,0.07335531,3598.3,3597.9,1.417897]
[1732921542429,0.07335531,3598.3,3597.9,0.8545]
[1732921542799,2.85249531,3598.3,3597.9,0.7545]
[1732921543214,2.77917,3598.2,3597.9,0.7545]
[1732921543419,0.0730627,3598.1,3597.9,0.1]
[1732921543726,2.8523227,3598.1,3597.6,0.7589]
[1732921544029,2.8523227,3598.1,3597.7,0.1]
[1732921545027,5.6316327,3598.1,3597.7,0.1]
[1732921545227,0.0730627,3598.1,3597.7,0.1]
[1732921545735,2.77924,3598.1,3597.7,0.1]
[1732921546048,0.4193236,3598.0,3597.1,0.8589]
[1732921546725,2.77968,3597.6,3597.1,0.8589]
[1732921547017,0.07253106,3597.5,3597.1,0.8589]
[1732921547997,2.77956,3597.7,3597.1,0.8589]
[1732921548213,2.85219318,3597.6,3597.1,0.8589]
[1732921550496,2.77971,3597.5,3597.1,0.8589]
[1732921550940,2.85261959,3597.4,3597.1,0.8589]
[1732921551135,2.85261959,3597.4,3596.8,0.7589]
[1732921551136,2.77987,3597.3,3596.8,0.7589]
[1732921551311,0.07282959,3597.4,3597.0,0.1]
[1732921551512,0.0724647,3597.2,3597.0,0.1]
[1732921551843,0.07233129,3597.1,3597.0,0.1]
[1732921551998,2.77942,3597.9,3597.0,0.741936]
[1732921552197,2.85196613,3597.8,3597.2,2.87993]
[1732921552817,2.77956,3597.7,3597.2,2.87993]
[1732921553000,0.07230743,3597.6,3597.2,2.87993]
[1732921553204,0.07230743,3597.6,3597.2,0.1]
[1732921554356,0.07230743,3597.6,3597.0,0.1]
[1732921554519,2.85198743,3597.6,3597.3,0.1]
[1732921554720,2.77968,3597.6,3597.3,0.1]
[1732921555070,0.07234714,3597.5,3597.3,2.87984]
[1732921555220,0.07234714,3597.5,3597.4,3.82944368]
[1732921555419,2.77895,3598.5,3597.7,2.77954]
[1732921555719,2.77917,3598.2,3597.8,0.1]
[1732921556030,2.77939,3598.0,3597.4,0.8589]
[1732921556229,2.77917,3598.2,3597.7,0.1]
[1732921556230,0.0727764,3597.9,3597.7,0.1]
[1732921556429,2.77917,3598.2,3597.4,3.63867]
[1732921556630,0.07286224,3598.1,3597.6,0.1]
[1732921556927,0.07286224,3598.1,3597.1,3.63884]
[1732921556928,2.77963,3597.6,3597.1,3.63884]
[1732921557117,0.35806546,3598.1,3597.1,3.63884]
[1732921557118,2.85212224,3598.1,3597.6,0.1]
[1732921557316,2.7791,3598.3,3597.8,0.1]
[1732921557741,2.77917,3598.2,3597.8,0.1]
[1732921557951,2.77932,3598.0,3597.7,0.8589]
[1732921558324,0.07286668,3597.9,3597.7,0.7589]
[1732921558555,0.07286668,3597.9,3597.7,0.1]
[1732921559327,2.77919,3598.2,3597.7,0.1]
[1732921559523,0.07284458,3597.8,3597.7,0.1]
[1732921560058,2.77914,3598.3,3597.7,0.1]
[1732921560273,0.07295615,3598.2,3597.8,0.7589]
[1732921560449,0.07295615,3598.2,3598.0,0.1]
[1732921560656,2.77872,3598.8,3598.2,0.1]
[1732921560827,2.77887,3598.6,3598.2,0.1]
[1732921561026,2.77887,3598.6,3597.5,2.77969]
[1732921561027,2.77922,3598.2,3597.9,0.1]
[1732921561230,2.85220135,3598.1,3597.7,0.9167]
[1732921561472,2.85220135,3598.1,3597.7,0.8167]
[1732921561764,2.85220135,3598.1,3597.9,0.1]
[1732921562464,0.07295135,3598.1,3597.9,0.1]
[1732921562637,0.312502,3598.8,3597.9,0.1]
[1732921562852,2.77913,3598.3,3597.9,0.1]
[1732921563045,2.77931,3598.1,3597.9,0.1]
[1732921563248,0.07295211,3598.0,3597.9,0.1]
[1732921563459,2.85227211,3598.0,3597.9,0.1]
[1732921563635,3.41543032,3598.0,3597.9,0.1]
[1732921563830,0.63611032,3598.0,3597.4,0.9167]
[1732921564034,2.77945,3597.9,3597.6,0.1]
[1732921564242,2.85241184,3597.8,3597.6,0.1]
[1732921564636,0.07291184,3597.8,3597.6,0.1]
[1732921564833,2.77904,3598.4,3597.8,0.1]
[1732921565033,2.77904,3598.4,3596.6,2.68732489]
[1732921565034,0.07301925,3598.3,3598.2,0.1]
[1732921565233,2.85210925,3598.3,3598.2,0.1]
[1732921565465,2.77917,3598.2,3597.9,0.8167]
[1732921565774,0.07296341,3598.1,3597.9,0.8167]
[1732921566339,2.77932,3598.0,3597.8,0.1]
[1732921566679,0.0729192,3597.9,3597.8,0.1]
[1732921567177,2.77929,3598.1,3597.8,0.1]
[1732921567364,0.07294939,3597.9,3597.8,0.1]
[1732921567676,2.77908,3598.4,3598.2,0.1]
[1732921568184,2.779,3598.5,3598.2,0.1]
[1732921568498,3.437542,3598.8,3597.7,0.1]
[1732921568655,2.77921,3598.2,3598.1,0.1]
[1732921568863,0.0730157,3598.2,3598.1,0.1]
[1732921569061,2.77903,3598.4,3598.1,0.1]
[1732921569250,2.77916,3598.2,3598.1,0.1]
[1732921569477,0.07301951,3598.2,3598.0,0.1]
[1732921569648,2.7793,3598.1,3597.8,0.1]
[1732921569847,2.77909,3598.3,3597.8,0.1]
[1732921569848,2.8523053,3598.0,3597.8,0.1]
[1732921570262,2.8523053,3598.0,3597.6,0.8746]
[1732921570488,2.8523053,3598.0,3597.6,0.7746]
[1732921570787,2.8523053,3598.0,3597.6,0.8746]
[1732921571150,2.8523053,3598.0,3597.7,0.1]
[1732921571351,2.8523053,3598.0,3597.9,0.1]
[1732921571352,0.0729753,3598.0,3597.9,0.1]
[1732921571571,0.0729753,3598.0,3597.6,0.7746]
[1732921571572,2.8522953,3598.0,3597.6,0.7746]
[1732921571771,2.77953,3597.8,3597.5,0.1]
[1732921572326,2.85245984,3597.7,3597.5,0.1]
[1732921572596,0.07288984,3597.7,3597.5,0.1]
[1732921572751,2.77963,3597.6,3597.5,0.1]
[1732921573090,2.85250638,3597.6,3597.5,0.1]
[1732921573292,2.7797,3597.5,3597.0,0.7746]
[1732921573503,2.77994,3597.2,3596.7,0.7746]
[1732921573988,2.77994,3597.2,3596.8,0.1]
[1732921573989,2.85276463,3597.1,3596.8,0.1]
[1732921574192,2.78016,3597.0,3596.8,0.1]
[1732921574348,2.78017,3596.9,3596.8,0.1]
[1732921574544,2.8528504,3596.9,3596.8,0.1]
[1732921577156,2.8528504,3596.9,3596.6,0.2544556]
[1732921577468,0.0726804,3596.9,3596.7,0.1]
[1732921577667,2.78024,3596.8,3596.7,0.1]
[1732921577878,2.85257985,3596.8,3596.7,0.1]
[1732921578093,2.78032,3596.7,3596.6,0.9290556]
[1732921578302,2.78032,3596.7,3596.6,0.1544556]
[1732921578501,2.85263773,3596.7,3596.6,0.1544556]
[1732921581370,3.4159255,3596.7,3596.6,0.1544556]
[1732921581582,6.29509479,3596.7,3596.6,0.1544556]
[1732921582061,9.84509479,3596.7,3596.6,0.1544556]
[1732921584414,2.78055,3596.4,3594.7,0.1]
[1732921584596,2.78141,3595.3,3594.7,0.1]
[1732921584832,2.78179,3594.8,3594.7,0.1]
[1732921585114,2.85339027,3594.8,3594.7,0.1]
[1732921585431,2.78233,3594.1,3594.0,0.8203]
[1732921585775,2.78233,3594.1,3593.0,0.70812539]
[1732921585776,2.78254,3593.9,3593.7,0.8734]
[1732921586099,2.85385368,3593.8,3593.7,0.8734]
[1732921586474,0.07129368,3593.8,3593.7,0.8734]
[1732921586710,2.78241,3594.0,3593.7,0.8734]
[1732921586909,0.07110488,3593.8,3593.7,0.8734]
[1732921587208,0.3463,3594.6,3593.7,0.8734]
[1732921587409,0.07110488,3593.8,3593.7,0.8734]
[1732921587874,2.7823,3594.2,3593.7,0.8734]
[1732921588074,0.0712988,3593.8,3593.7,0.8734]
[1732921588310,0.0712988,3593.8,3593.0,2.9376356]
[1732921588311,2.78259,3593.8,3593.4,0.1]
[1732921588529,0.3463,3593.5,3593.4,0.1]
[1732921588701,0.07106928,3593.8,3593.4,0.1]
[1732921588874,0.07089068,3593.5,3593.4,0.05]
[1732921589311,2.78275,3593.6,3593.4,0.05]
[1732921589608,2.85367962,3593.5,3593.4,0.05]
[1732921589971,0.07087962,3593.5,3593.4,0.05]
[1732921590171,0.07087962,3593.5,3593.4,3.60627]
[1732921590411,2.53286929,3594.9,3593.4,3.60627]
[1732921590412,0.3463,3594.8,3594.1,0.05]
[1732921590613,2.78195,3594.6,3594.1,0.05]
[1732921590779,0.0636706,3594.7,3594.1,0.05]
[1732921591140,0.06423619,3594.6,3594.1,2.83233]
[1732921591605,2.78167,3595.0,3594.4,0.05]
[1732921591804,0.06406701,3594.5,3594.4,0.05]
[1732921592023,2.78149,3595.2,3594.6,0.05]
[1732921592229,3.1252442,3595.2,3594.6,0.8234]
[1732921592549,3.1252442,3595.2,3594.6,0.7734]
[1732921592821,2.84600715,3595.1,3594.6,0.7734]
[1732921592992,0.06444715,3595.1,3594.6,0.7734]
[1732921593418,2.78166,3595.0,3594.6,0.7734]
[1732921593818,0.06441216,3594.9,3594.2,0.7734]
[1732921594019,0.06441216,3594.9,3594.3,2.78218]
[1732921595134,0.06441216,3594.9,3594.3,2.78216]
[1732921595635,2.78161,3595.1,3594.4,2.78209]
[1732921595834,0.06431953,3594.8,3594.5,2.78195]
[1732921595999,2.78145,3595.3,3594.6,2.78188]
[1732921596499,0.3463,3595.4,3594.6,2.78188]
[1732921596500,0.06225179,3595.2,3594.6,2.78195]
[1732921596692,0.06225179,3595.2,3594.8,2.78179]
[1732921596922,0.3463,3595.7,3594.8,3.137169]
[1732921597123,2.78137,3595.4,3594.7,0.772]
[1732921597338,2.78149,3595.2,3594.7,0.772]
[1732921597506,2.78149,3595.2,3594.6,2.78194]
[1732921597805,0.0623022,3595.1,3594.5,2.78201]
[1732921598125,2.78156,3595.1,3594.5,2.78201]
[1732921598332,0.06228006,3595.0,3594.5,2.78201]
[1732921598947,0.06228006,3595.0,3594.6,2.78194]
[1732921599240,0.06228006,3595.0,3594.4,0.772]
[1732921599410,3.0,3595.6,3594.9,2.78169]
[1732921599600,3.0,3595.6,3595.1,2.78151]
[1732921600000,0.06250152,3595.5,3595.1,2.78151]
[1732921600602,3.12764,3595.4,3594.7,2.7818]
[1732921600837,3.78968967,3595.4,3594.7,2.7818]
[1732921601026,0.06248926,3595.3,3594.7,2.7818]
[1732921601232,2.84389926,3595.3,3594.5,2.782]
[1732921601963,2.78148,3595.2,3594.6,2.78194]
[1732921602101,3.37003201,3595.2,3594.6,2.78194]
[1732921602646,0.3463,3595.1,3593.4,3.42452982]
[1732921602826,2.78179,3594.8,3593.4,0.64170982]
[1732921603002,2.78179,3594.8,3593.8,2.78251]
[1732921603338,2.78196,3594.6,3593.8,2.78249]
[1732921603865,0.0622586,3594.5,3594.1,2.78232]
[1732921604140,2.7818,3594.8,3594.1,2.78232]
[1732921604329,0.06210836,3594.4,3594.1,2.78232]
[1732921604533,2.7818,3594.8,3594.1,2.78232]
[1732921604853,0.06211217,3594.3,3594.1,2.78232]
[1732921605042,2.78164,3595.0,3594.1,2.78232]
[1732921605218,0.06210732,3594.2,3594.1,2.78232]
[1732921605413,0.36540328,3594.9,3594.1,2.78232]
[1732921605628,2.7819,3594.7,3594.1,2.78232]
[1732921606003,0.3463,3594.5,3593.9,2.78248]
[1732921606226,2.78222,3594.3,3593.8,2.78256]
[1732921606530,0.06228898,3594.2,3593.5,3.60339]
[1732921606727,0.06228898,3594.2,3593.6,2.78267]
[1732921607123,0.06228898,3594.2,3593.7,2.78258]
[1732921607760,0.06228898,3594.2,3593.8,2.78255]
[1732921608055,0.64294639,3594.5,3593.9,2.78248]
[1732921608259,0.3463,3594.5,3594.1,2.78233]
[1732921608460,0.06216846,3594.4,3593.9,2.78248]
[1732921608657,0.06216846,3594.4,3594.1,2.78233]
[1732921608858,0.06216846,3594.4,3593.9,2.78248]
[1732921609962,0.06216846,3594.4,3594.0,2.7824]
[1732921610365,0.06216846,3594.4,3594.3,2.78218]
[1732921610672,3.49342328,3594.9,3594.3,2.78218]
[1732921610824,0.34934233,3594.8,3594.3,2.78218]
[1732921611031,3.19341317,3594.8,3594.1,5.56459]
[1732921611529,3.19341317,3594.8,3594.2,2.78225]
[1732921612154,0.41161317,3594.8,3594.1,2.78228]
[1732921612349,0.06227084,3594.8,3594.0,0.8206]
[1732921612533,2.78143,3595.3,3594.0,0.8206]
[1732921612534,2.78149,3595.2,3594.6,2.78192]
[1732921612732,0.06225981,3594.7,3594.6,2.78192]
[1732921612928,2.78156,3595.1,3594.4,2.78204]
[1732921613136,0.06225981,3594.7,3594.4,2.78204]
[1732921613334,0.06225981,3594.7,3594.5,2.78199]
[1732921613559,2.78156,3595.1,3594.5,2.78199]
[1732921613761,3.12773,3595.3,3594.5,2.78199]
[1732921613762,0.06226707,3594.6,3594.5,2.78202]
[1732921613958,0.3463,3595.3,3594.8,2.78179]
[1732921614131,0.312764,3595.2,3594.8,2.78179]
[1732921614333,0.312764,3595.2,3594.9,2.7817]
[1732921614334,0.06029021,3595.2,3594.9,2.7817]
[1732921614555,0.06029021,3595.2,3594.3,2.78211]
[1732921614737,0.06029021,3595.2,3594.9,2.78168]
[1732921615144,0.06029021,3595.2,3593.8,2.78255]
[1732921615145,0.3463,3595.1,3593.5,0.8206]
[1732921615360,2.78177,3594.9,3593.6,5.56544]
[1732921615557,0.59700278,3594.8,3594.1,2.78228]
[1732921615729,0.65732904,3594.8,3594.2,2.78223]
[1732921616139,0.65732904,3594.8,3594.3,2.78217]
[1732921616347,0.06032626,3594.8,3594.3,2.78217]
[1732921616670,0.06032626,3594.8,3594.7,2.78187]
[1732921616873,3.0,3595.5,3594.7,2.78187]
[1732921616874,0.3463,3595.4,3594.9,2.78168]
[1732921617581,0.3463,3595.4,3595.2,2.78148]
[1732921617882,0.3463,3595.7,3595.2,2.78145]
[1732921618381,0.3463,3596.1,3595.2,2.78145]
[1732921618561,2.781,3595.9,3595.2,2.78145]
[1732921618761,0.590814,3595.8,3595.2,2.78145]
[1732921618963,3.371854,3595.8,3595.2,2.78145]
[1732921619146,0.06066639,3595.7,3595.2,2.78145]
[1732921619346,2.78118,3595.6,3595.0,2.78161]
[1732921619668,0.9436285,3595.5,3595.0,2.78161]
[1732921619871,1.00436971,3595.5,3595.0,2.78161]
[1732921620070,3.78561971,3595.5,3594.7,0.8206]
[1732921620244,1.00436971,3595.5,3594.4,3.60269]
[1732921620443,1.00436971,3595.5,3594.4,2.78209]
[1732921620444,2.7817,3595.0,3594.4,2.78209]
[1732921620682,2.78115,3595.7,3593.9,2.78242]
[1732921620683,3.18877514,3594.9,3593.9,2.78242]
[1732921620889,2.78187,3594.7,3594.1,2.78227]
[1732921621190,0.06055853,3594.6,3594.2,2.78225]
[1732921621394,2.7818,3594.8,3594.2,2.78225]
[1732921621565,0.06044455,3594.5,3594.4,2.7821]
[1732921621768,0.3463,3595.5,3594.9,2.7817]
[1732921622281,2.78096,3595.9,3595.3,2.78139]
[1732921622480,0.3463,3596.0,3595.6,2.78111]
[1732921622686,0.3463,3596.0,3595.4,2.7813]
[1732921622892,0.937089,3596.0,3595.4,2.7813]
[1732921623099,2.78098,3595.9,3595.3,2.78139]
[1732921623254,2.78098,3595.9,3595.2,0.8047]
[1732921623457,2.78115,3595.7,3595.0,2.78161]
[1732921623695,2.78115,3595.7,3595.1,2.78154]
[1732921624002,0.937089,3596.0,3595.3,2.7814]
[1732921624198,0.937089,3596.0,3595.5,2.78123]
[1732921624359,0.937089,3596.0,3595.6,2.78116]
[1732921624949,2.78066,3596.3,3595.1,2.78156]
[1732921625100,0.3463,3596.4,3595.2,0.8047]
[1732921625303,2.78076,3596.2,3595.4,2.7813]
[1732921625592,2.781,3595.9,3595.3,2.7814]
[1732921626481,2.78106,3595.8,3595.2,0.8047]
[1732921626689,2.78106,3595.8,3595.2,3.58612]
[1732921627209,2.78117,3595.6,3594.8,2.78175]
[1732921627993,2.78134,3595.4,3594.8,2.78175]
[1732921628394,0.05576762,3595.3,3594.8,2.78175]
[1732921628597,0.05576762,3595.3,3594.9,2.78169]
[1732921628835,0.3463,3596.1,3595.5,2.7812]
[1732921629002,3.21086254,3597.2,3596.0,2.78085]
[1732921629203,2.78062,3596.4,3595.8,3.5857]
[1732921629610,2.78064,3596.3,3595.8,3.5857]
[1732921629818,2.78064,3596.3,3595.8,0.8047]
[1732921630330,2.73064,3596.3,3595.8,0.8047]
[1732921630496,2.78048,3596.5,3595.8,0.8047]
[1732921630497,2.78048,3596.5,3596.0,2.78086]
[1732921630695,2.78019,3596.9,3596.0,2.78086]
[1732921630946,2.7802,3596.9,3596.1,2.78078]
[1732921631113,2.7802,3596.9,3596.2,2.7807]
[1732921631493,2.83448473,3596.8,3596.2,2.7807]
[1732921631698,0.05422473,3596.8,3596.4,2.78054]
[1732921631996,3.12633,3597.1,3596.4,2.78054]
[1732921631997,2.78019,3596.9,3596.4,2.78054]
[1732921632197,0.05423671,3596.7,3596.5,2.78047]
[1732921632400,3.12633,3597.1,3596.5,2.78047]
[1732921632635,0.05405935,3596.6,3596.5,2.78047]
[1732921632841,3.12633,3597.1,3596.5,2.78047]
[1732921633140,2.78003,3597.1,3596.4,3.58524]
[1732921633301,0.05420697,3597.0,3596.4,3.58524]
[1732921633838,0.05420697,3597.0,3596.6,2.78033]
[1732921634199,3.12618,3597.3,3596.7,2.78031]
[1732921634727,0.05402324,3597.2,3596.7,2.78031]
[1732921635230,0.05402324,3597.2,3596.6,2.7804]
[1732921635435,0.05402324,3597.2,3596.8,2.78024]
[1732921635736,0.05404817,3597.1,3596.6,2.7804]
[1732921635936,0.05404817,3597.1,3596.7,2.78032]
[1732921636136,2.77987,3597.3,3596.7,2.78032]
[1732921636347,0.05404379,3597.0,3596.7,2.78032]
[1732921636494,0.05404379,3597.0,3596.6,0.7002234]
[1732921636495,2.7797,3597.5,3596.6,0.7002234]
[1732921636831,2.7797,3597.5,3596.7,2.78026]
[1732921636832,2.77986,3597.3,3596.7,2.78026]
[1732921637193,2.77986,3597.3,3596.5,2.78046]
[1732921637194,0.05422547,3597.2,3596.5,2.78046]
[1732921637397,0.05422547,3597.2,3596.6,2.78038]
[1732921637696,0.05422547,3597.2,3596.8,2.78024]
[1732921637897,0.05422547,3597.2,3596.6,2.78035]
[1732921638093,0.05420336,3597.1,3596.6,3.416901]
[1732921638338,2.77986,3597.3,3596.6,3.416901]
[1732921638499,0.0539291,3597.2,3596.6,3.416901]
[1732921638833,0.3463,3596.9,3595.2,0.875]
[1732921639046,0.3463,3596.1,3595.2,0.875]
[1732921639341,0.55,3596.0,3595.2,0.875]
[1732921639501,2.83475829,3596.0,3595.2,0.875]
[1732921639842,2.78094,3595.9,3595.2,3.65643]
[1732921640044,2.78094,3595.9,3595.3,2.78139]
[1732921640193,0.05190134,3595.8,3595.3,2.78139]
[1732921640397,0.05190134,3595.8,3595.2,1.518808]
[1732921640908,0.05190134,3595.8,3595.2,4.300288]
[1732921641312,2.78094,3595.9,3595.2,4.300288]
[1732921641651,2.83318639,3595.8,3595.2,4.300288]
[1732921643265,0.05216639,3595.8,3595.4,2.78132]
[1732921643549,2.78062,3596.4,3595.5,0.8117]
[1732921643763,2.78078,3596.2,3595.5,3.62069957]
[1732921644105,2.7811,3595.7,3595.2,1.6867]
[1732921644413,0.05194691,3595.6,3595.2,4.46812]
[1732921644613,2.78095,3595.9,3595.3,0.72497]
[1732921644963,0.05197864,3595.5,3595.3,0.72497]
[1732921645129,2.78065,3596.3,3595.6,2.78115]
[1732921645321,2.78072,3596.2,3595.6,2.78115]
[1732921645506,2.83280139,3596.2,3595.6,2.78115]
[1732921645927,2.7808,3596.1,3595.4,2.78128]
[1732921646132,2.7808,3596.1,3595.3,2.7814]
[1732921646352,0.05225261,3596.0,3595.4,0.44681]
[1732921646704,2.78067,3596.3,3595.4,0.44681]
[1732921647036,2.78084,3596.1,3595.4,3.22813]
[1732921647349,0.05210781,3596.0,3595.4,3.22813]
[1732921647708,0.05210781,3596.0,3595.6,2.78112]
[1732921647909,2.78066,3596.3,3595.7,0.40596704]
[1732921648252,0.05215827,3596.2,3595.7,0.40596704]
[1732921648549,2.83286827,3596.2,3595.7,0.40596704]
[1732921648753,0.05215827,3596.2,3595.7,3.18705704]
[1732921648951,2.78061,3596.4,3595.8,2.78102]
[1732921649316,0.05218661,3596.3,3595.8,2.78102]
[1732921649557,0.05218661,3596.3,3595.9,2.78088]
[1732921649846,2.78041,3596.6,3596.0,3.59255]